Cogmind - Beta 13 @@@ ROGUE MODE // 2024.04.04 @ 13:29:06 Player: FAYE Result: Destroyed by G-34 Mercenary with Small Laser Performance ------------- Evolutions (0) 0 Regions Visited (2) 400 Robots Destroyed (19) 95 Value Destroyed (502) 502 Prototype IDs (0) 0 Alien Tech Used (0) 0 Bonus (0) 0 TOTAL SCORE: 997 Bonus ------- None Cogmind --------- Core Integrity 0/250 Matter 296/300 Energy 156/160 System Corruption 0% Temperature Cool (8) Movement Treading (160) Location -10/Mines Parts ------- > --- POWER (1) -------- Light Nuclear Core > --- PROPULSION (2) --- Light Treads Light Treads > --- UTILITY (2) ------ Power Shielding Weapon Shielding > --- WEAPON (2) ------- Light Assault Rifle Grenade Launcher > --- INVENTORY (5) ---- Ion Engine Small Storage Unit Signal Generator Peak State ------------ > --- POWER ------------ Light Nuclear Core > --- PROPULSION ------- Light Treads Light Treads > --- UTILITY ---------- Small Storage Unit Visual Processing Unit > --- WEAPON ----------- Light Assault Rifle > --- INVENTORY -------- Ion Engine Light Treads Sensor Array Power Shielding Weapon Shielding Grenade Launcher Signal Generator [Rating: 10] Favorites ----------- Power Ion Engine Engine Ion Engine Power Core Light Nuclear Core Propulsion Light Treads Treads Light Treads Utility Small Storage Unit Device Sensor Array Storage Small Storage Unit Processor Visual Processing Unit Protection Light Armor Plating Weapon Light Assault Rifle Ballistic Gun Light Assault Rifle Launcher Grenade Launcher Build | -11 -10 -10 ------- Run | Yrd Mat Min Slots Evolved . | . . . Power . | . . . Propulsion . | . . . Utility . | . . . Weapon . | . . . Parts Attached 27 | 6 14 7 Power 5 | 1 2 2 Engine 4 | 1 2 1 Core 1 | . . 1 Reactor . | . . . Propulsion 7 | 2 3 2 Treads 7 | 2 3 2 Leg . | . . . Wheel . | . . . Hover . | . . . Flight . | . . . Utility 11 | 1 8 2 Device 2 | . 2 . Storage 4 | 1 3 . Processor 1 | . 1 . Hackware . | . . . Protection 4 | . 2 2 Artifact . | . . . Weapon 4 | 2 1 1 Energy Gun . | . . . Energy Cannon . | . . . Ballistic Gun 3 | 2 1 . Ballistic Cannon . | . . . Launcher 1 | . . 1 Special Weapon . | . . . Impact Weapon . | . . . Slashing Weapon . | . . . Piercing Weapon . | . . . Special Melee Weapon . | . . . Unidentified Prototypes . | . . . Parts Lost 6 | . 3 3 Power 2 | . 1 1 Propulsion 2 | . 1 1 Utility 1 | . 1 . Weapon 1 | . . 1 Highest Loss Streak 3 | . 2 3 To Critical Strikes . | . . . Average Slot Usage (%) 94 | . 95 88 Engine 11 | . 13 4 Treads 27 | . 27 25 Device 2 | . 3 . Storage 10 | . 10 10 Processor 4 | . 3 10 Protection 6 | . 6 6 Ballistic Gun 26 | . 28 20 Naked Turns . | . . . Heaviest Build 91 | 13 91 14 Greatest Support 40 | 40 40 40 Greatest Overweight (x) 2 | . 2 . Average Overweight (x) . | . . . Largest Inventory Capacity 25 | 8 25 8 Average Capacity 7 | 7 7 7 Most Carried 8 | 5 8 8 Average Carried 5 | 1 5 6 Final Capacity 8 | 8 8 5 Final Carried 7 | 2 7 3 Class Distribution -------------------- 95% | Mutant 4% | Scavenger-Mutant Dominant Class ---------------- Mutant | -10/Materials Mutant | -10/Mines Resources | -11 -10 -10 ----------- Run | Yrd Mat Min Matter Collected 680 | 184 365 131 Remotely . | . . . Salvage Created 565 | . 449 116 Parts 35 | . 28 7 Haulers Intercepted . | . . . Recyclers Shooed 1 | . . 1 Parts Field Recycled . | . . . Retrieved Matter . | . . . Parts Self-Destructed . | . . . Prevented . | . . . Kills | -11 -10 -10 ------- Run | Yrd Mat Min Combat Hostiles Destroyed 17 | . 14 3 Guns 17 | . 14 3 Classes Destroyed 3 | . 3 . Watcher 2 | . 2 . Swarmer 6 | . 6 . Grunt 11 | . 8 3 Best Kill Streak 4 | . 4 2 Combat Bots Only 4 | . 4 2 Max Kills in Single Turn 1 | . 1 1 Gunslinging . | . . . Exploded . | . . . Melee . | . . . Uniques/NPCs Destroyed . | . . . Combat | -11 -10 -10 -------- Run | Yrd Mat Min Hostile Shots Fired 148 | . 91 57 Missed 32 | . 19 13 Damage Taken 1332 | . 807 525 Core 250 | . 194 56 Absorbed by Shields . | . . . Redirected to Shielding 10 | . . 10 Core Remaining (%) 100 | 100 . . Volleys Fired 91 | . 57 34 Largest 2 | . 2 2 Hottest 40 | . 40 40 Shots Fired 164 | . 114 50 Gun 164 | . 114 50 Cannon . | . . . Launcher . | . . . Special . | . . . Kinetic 164 | . 114 50 Thermal . | . . . Explosive . | . . . Electromagnetic . | . . . Robot Hit Streak 9 | . 8 9 Robot Miss Streak 4 | . 4 4 Penetration Max . | . . . Secondary Targets 8 | . 6 2 Max Gunslinging Chain 1 | . 1 1 Shots Hit Robots 102 | . 68 34 Core Hits 43 | . 30 13 Critical Kills . | . . . Critical Parts Destroyed . | . . . Critical Strikes . | . . . Melee Attacks . | . . . Impact . | . . . Slashing . | . . . Piercing . | . . . Sneak Attacks . | . . . Combat Hostiles . | . . . Follow-up Attacks . | . . . Damage Inflicted 979 | . 689 290 Guns 979 | . 689 290 Cannons . | . . . Explosions . | . . . Melee . | . . . Ramming . | . . . Kinetic 979 | . 689 290 Thermal . | . . . Explosive . | . . . Electromagnetic . | . . . Impact . | . . . Slashing . | . . . Piercing . | . . . Highest Corruption . | . . . Average Corruption . | . . . Corruption Purged . | . . . Corruption Blocked . | . . . Overload Shots . | . . . Overflow Damage . | . . . Projectiles . | . . . Explosions . | . . . Melee . | . . . Knockbacks . | . . . Impact . | . . . Kinetic . | . . . Secondary . | . . . Self-Inflicted Damage . | . . . Shots . | . . . Rammed . | . . . Targets Rammed . | . . . Kicked . | . . . Crushed . | . . . Highest Temperature 75 | . 75 43 Average Temperature 17 | . 19 12 Received Heat Transfer 672 | . 384 288 Siege Activations . | . . . Robots Corrupted . | . . . Combat Hostiles . | . . . Parts Fried . | . . . Impact Corruptions . | . . . Robots Melted . | . . . Combat Hostiles . | . . . Parts Melted . | . . . Heat Transferred . | . . . Parts Sabotaged . | . . . Parts Stolen . | . . . Parts Stripped . | . . . Power Chain Reactions . | . . . Alert | -11 -10 -10 ------- Run | Yrd Mat Min Peak Influence 272 | . 272 113 Initial 78 | . . 78 Average 118 | . 136 88 Maximum Alert Level 1 | . 1 . Low Security (%) 75 | 100 67 100 Level 1 24 | . 32 . Level 2 . | . . . Level 3 . | . . . Level 4 . | . . . Level 5 . | . . . High Security . | . . . Max Security . | . . . Squads Dispatched 4 | . 3 1 Investigation 1 | . 1 . Extermination . | . . . Reinforcement 2 | . 2 . Assault 1 | . . 1 Garrison . | . . . Intercept . | . . . Searches Triggered . | . . . Construction Impeded . | . . . Haulers Reinforced . | . . . Active Scanning Responses . | . . . Cargo Convoy Interrupts . | . . . Stealth | -11 -10 -10 --------- Run | Yrd Mat Min Distress Signals . | . . . Communications Jammed . | . . . Distress Signals . | . . . Times Spotted 28 | . 19 9 Peak Tracking Total 4 | . 4 4 Tactical Retreats . | . . . Traps | -11 -10 -10 ------- Run | Yrd Mat Min Traps Triggered . | . . . Indirectly . | . . . Trap Hack Attempts . | . . . Triggered . | . . . Disarmed . | . . . Reprogrammed . | . . . Reused . | . . . Traps Extracted . | . . . Installed . | . . . Triggered . | . . . Machines | -11 -10 -10 ---------- Run | Yrd Mat Min Machines Disabled 1 | . 1 . Max in Single Turn 1 | . 1 . Machines Repaired . | . . . Machines Dismantled . | . . . Machines Sabotaged . | . . . Overloaded Fab Kills . | . . . Hacking | -11 -10 -10 --------- Run | Yrd Mat Min Machines Accessed 5 | . 5 . Terminals 5 | . 5 . Fabricators . | . . . Repair Stations . | . . . Recycling Units . | . . . Scanalyzers . | . . . Garrison Access . | . . . Total Hacks 15 | . 15 . Successful 4 | . 4 . Failed 11 | . 11 . Catastrophic 1 | . 1 . Database Lockouts . | . . . Manual 1 | . 1 . Terminals 15 | . 15 . Fabricators . | . . . Repair Stations . | . . . Recycling Units . | . . . Scanalyzers . | . . . Garrison Access . | . . . Terminal Hacks 4 | . 4 . Record 2 | . 2 . Locate Traps 1 | . 1 . Dispatch Records 1 | . 1 . Fabricator Hacks . | . . . Repair Station Hacks . | . . . Recycling Unit Hacks . | . . . Scanalyzer . | . . . Garrison Access Hacks . | . . . Unauthorized Hacks . | . . . Terminals . | . . . Fabricators . | . . . Repair Stations . | . . . Recycling Units . | . . . Scanalyzers . | . . . Garrison Access . | . . . Data Cores Recovered . | . . . Used . | . . . Hacking Detections 3 | . 3 . Full Trace Events 3 | . 3 . Feedback Events . | . . . Feedback Blocked . | . . . Robot Schematics Acquired . | . . . Robots Built . | . . . Authchips . | . . . Time . | . . . Total Robot Build Rating . | . . . Part Schematics Acquired . | . . . Parts Built . | . . . Authchips . | . . . Time . | . . . Total Part Build Rating . | . . . Parts Repaired . | . . . Time . | . . . Parts Recycled . | . . . Recycled Matter . | . . . Retrieved Matter . | . . . Retrieved Components . | . . . Parts Scanalyzed . | . . . Part Schematics Acquired . | . . . Parts Damaged . | . . . Bothacking | -11 -10 -10 ------------ Run | Yrd Mat Min Used RIF Installer . | . . . Robots Hacked . | . . . Non-combat . | . . . Combat . | . . . Robot Hacks Applied . | . . . Relay Couplers Released . | . . . Fabnet Peak Effective % . | . . . Robots Rewired . | . . . Allies Hacked . | . . . Hacks Repelled . | . . . Allies | -11 -10 -10 -------- Run | Yrd Mat Min Total Allies 1 | . . 1 Largest Group 1 | . . 1 Highest-Rated Group 31 | . . 31 Highest-Rated Ally 31 | . . 31 Total Orders . | . . . Ally Attacks 2 | . . 2 Total Damage 20 | . . 20 Kills . | . . . Allies Corrupted . | . . . Allies Melted . | . . . Intel | -11 -10 -10 ------- Run | Yrd Mat Min Robot Analysis Total . | . . . Derelict Logs Recovered . | . . . Drone Launches . | . . . Drone Recoveries . | . . . Exploration | -11 -10 -10 ------------- Run | Yrd Mat Min Turns Passed 1045 | 76 798 171 Spaces Moved 458 | 43 364 51 Core 12 | 12 . . Treads 446 | 31 364 51 Legs . | . . . Wheels . | . . . Hover . | . . . Flight . | . . . Fastest Speed 50 | 50 160 160 Average Speed 158 | 129 161 160 Slowest Speed 320 | 160 320 160 Overloaded Moves . | . . . Propulsion Burnouts . | . . . Robots Hopped . | . . . Cave-ins Triggered . | . . . Exploration Rate (%) 22 | 3 58 7 Regions Visited 2 Branch Regions 1 Pre-discovered Areas . | . . . Known Exits Taken . | . . . Unknown Exits Taken 2 | 1 1 . Scrap Searched . | . . . Spaces Dug . | . . . Terrain Destroyed . | . . . Melee . | . . . Projectile . | . . . AOE . | . . . Terrain Rammed . | . . . Walls Destroyed . | . . . Machines Disabled . | . . . Actions | -11 -10 -10 --------- Run | Yrd Mat Min Total 640 | 64 475 101 Wait 30 | 8 18 4 Move 456 | 42 363 51 Hop . | . . . Pick Up 25 | 8 15 2 Fast Attach 2 | . 1 1 Attach 11 | 6 3 2 Detach . | . . . Swap 14 | . 10 4 Drop 11 | . 8 3 Fire 91 | . 57 34 Melee . | . . . Ram . | . . . Kick . | . . . Crush . | . . . Escape Stasis . | . . . Rewire . | . . . Trap . | . . . Miscellaneous . | . . . Route ------- -11/Scrapyard -10/Materials (discovered 3 exits: [*Mat] / [*Min x2]) -10/Mines History --------- Turn | Location | Event 7 | -11/Scrapyard | Discovered new exit (range 16) 77 | -11/Scrapyard | Entered Materials 325 | -10/Materials | Build established: Mutant 357 | -10/Materials | Discovered new exit (range 16) 419 | -10/Materials | Discovered new exit (range 11) 545 | -10/Materials | Core integrity fell below 50% 829 | -10/Materials | Discovered new exit (range 12) 875 | -10/Materials | Entered Mines 876 | -10/Mines | Met a Derelict testing a Signal Generator 880 | -10/Mines | Found Signal Generator 918 | -10/Mines | Core integrity fell below 20% 994 | -10/Mines | Lost 3 parts (1p1n1w) 1046 | -10/Mines | Destroyed by G-34 Mercenary with Small Laser Last Messages --------------- 00935_ G-47 Trooper destroyed. 00935_ Switching to secondary target: G-34 Mercenary. 00941_ R-06 Scavenger collects Ion Engine. 00953_ G-34 Mercenary destroyed. 00957_ Lgt. Assault Rifle destroyed. 00963_ Lgt. Treads destroyed. 00974_ G-34 Mercenary destroyed. 00978_ Acquired 57 matter. 00981_ Acquired Lgt. Nuclear Core. 00991_ Acquired Ion Engine. 00997_ Dropped Lgt. Treads. 00997_ R-06 Scavenger collects Heat Sink. 01000_ R-06 Scavenger collects Particle Gun. 01003_ Dropped Sensor Array. 01003_ R-06 Scavenger collects Sensor Array. 01004_ Discarded Visual Processing Unit. 01016_ Acquired 19 matter. 01021_ Acquired 53 matter. 01024_ Acquired 1 matter. Map ----- +----------------------------------------------------+ | ????????????????????????????????????????? | | ????????????????????????????????????????? | | ????????????????????????????????????????? | | ????????????????????????????????????????? | | ????????????????????????????????????????? | | ????????????????????????????????????????? | | ????????????????????????????????????????? | | ????????????????????????????????????????? | | ????????????????????????????????????????? | | ????????????????????????????????????????? | | ????????????????????????????????????????? | | ????????????????????????????????????????? | | ????????????????????????????????????????? | | ????????????????????????????????????????? | | ????????????????????????????????????????? | | ????????????????????????????????????????? | | ????????????????????????????????????????? | | ????????????????????????????????????????? | | ????????????????????????????????????????? | | ????????????????????????????????????????? | | ????????????????????????????????????????? | | ????????????????????????????????????????? | | ????????????????????????????#?????????#?? | | ??????????????????????????? #####g r #? | | ?????????????????????###### $ g ????? | | ?????????????????????# @ #???????????? | | ?????????????????????# ######???????????? | | ?????????????????????# #????????????????? | | ?????????????????????# #????????????????? | | ?????????????????????#%#######??????????? | | ?????????????????#####%## = ##?????????? | | ????????????????## %=! #?????????? | | ???????????????## #### % #?????????? | | ??????????????## #??#[ ##????????? | | ??????????????# #??# $ #????????? | | ??????????????# ##??# #????????? | | ??????????????## ##??## #???????? | | ???????????????### #???## #??????? | | ?????????????????## #????## #??????? | | ??????????????????## #????? #?????? | | ???????????????????####????? #?????? | | ???????????????????????????? ##?????? | | ???????????????????????????? ##??????? | | ???????????????????????????? ##???????? | | ???????????????????????????? #????????? | | ????????????????????????????? #????????? | | ????????????????????????????? ##????????? | | ????????????????????????????? #?????????? | | ????????????????????????????? ??????????? | | ????????????????????????????????????????? | +----------------------------------------------------+ Best States ------------- Heat Dissipation 25 Energy Generation 14 Energy Capacity 250 Matter Stores 300 Matter Capacity 300 Sight Range 18 Robot Scan Range 14 Terrain Scan Density 10 Armor Coverage 150 Power Shielding 33 Weapon Shielding 33 Evasion (%) 50 Recoil Reduction 2 Item Schematics ----------------- None Robot Schematics ------------------ None Fabricated ------------ Nothing Alien Tech Used ----------------- None Achievements -------------- None Challenges ------------ None Game ------ Seed ProcessingStorageExoskeleton Manual? 0 Play Time 00:13:36 Cumulative 2.5 hours Start 2024.04.04 @ 13:17:56 End 2024.04.04 @ 13:29:06 Sessions 1 Manual Loads 0 Difficulty Rogue Special Mode None Game No. 6 Rogue 6 Adventurer 0 Explorer 0 Win Type - Total 0 Types 0/0/0/0/0/0/0/0/0 Lore% 2 Gallery% 10 Achievement% 8 Wizard Run 0 Options --------- Layout 2 ASCII 0 Keyboard 0 Movement Mouse Keybinds 0 Fullscreen 1 Font 32/SmallcapsGlow Map View 50x44 Zoom Use 0% Tactical HUD 1 Map Filters NONE Filters NONE Steam 1 RUN: aa6ed061-7d6a-4450-8811-bf955d1f705e